bitfinex/quotes_ETHUSD_20220309
["timestamp","ask_amount","ask_price","bid_price","bid_amount"]
[1646850249930,0.00389029,2724.4,2724.2,0.08264974]
[1646850250131,0.00389029,2724.4,2724.3,1.52619245]
[1646850250937,1.0,2724.5,2724.3,1.52619245]
[1646850251132,1.00389029,2724.5,2724.3,1.52619245]
[1646850251975,1.0,2724.5,2724.3,1.52515155]
[1646850252377,1.00389025,2724.5,2724.3,1.52515155]
[1646850252577,1.00389025,2724.5,2724.4,0.07547391]
[1646850252578,0.00389025,2724.5,2724.4,0.07547391]
[1646850252780,1.0,2724.9,2724.5,16.64]
[1646850252981,1.0,2724.9,2724.6,0.52815474]
[1646850253381,1.0,2724.9,2724.7,11.14]
[1646850253583,1.0,2724.9,2724.8,12.38844792]
[1646850253783,0.011667,2725.3,2724.8,12.38844792]
[1646850253784,0.011667,2725.3,2724.9,5.5]
[1646850253988,1.83575,2725.9,2725.0,0.08441042]
[1646850253989,0.011667,2725.9,2725.0,0.08441042]
[1646850254181,0.011667,2725.9,2725.1,11.14]
[1646850254383,0.062667,2725.9,2725.2,0.08503092]
[1646850254682,0.00184761,2725.6,2725.2,0.08503092]
[1646850255528,0.01714475,2726.1,2725.4,0.07805481]
[1646850255927,0.00184761,2725.5,2725.2,0.07901256]
[1646850256132,0.00184761,2725.5,2724.8,1.61173516]
[1646850256330,0.00184761,2725.5,2724.9,0.07749846]
[1646850256527,0.00184761,2725.5,2724.7,0.077927]
[1646850256729,1.0,2725.2,2724.7,0.077927]
[1646850256928,1.0,2725.2,2724.3,0.0846439]
[1646850257131,0.91801,2725.1,2724.3,0.0846439]
[1646850257528,0.91801,2725.1,2724.3,1.31395825]
[1646850257729,0.91801,2725.1,2724.4,0.07583436]
[1646850258637,0.86801,2725.1,2724.4,0.07583436]
[1646850259482,0.86801,2725.1,2724.6,0.00407566]
[1646850260090,4.36801,2725.1,2724.6,0.00407566]
[1646850260286,1.0,2724.8,2724.6,0.00407566]
[1646850260486,0.91818,2724.7,2724.2,0.08680058]
[1646850262085,0.91818,2724.7,2724.3,0.00364757]
[1646850262485,1.0,2725.0,2724.3,0.00364757]
[1646850262685,1.0,2725.0,2724.4,0.08889561]
[1646850263144,1.0,2725.0,2724.5,0.00364743]
[1646850263440,2.83607,2725.0,2724.5,0.00364743]
[1646850264040,2.83607,2725.0,2724.2,0.3]
[1646850264240,2.83607,2725.0,2724.1,0.08838625]
[1646850264443,2.83607,2725.0,2724.6,0.00364736]
[1646850264946,6.33607,2725.0,2724.6,0.00364736]
[1646850265146,2.83607,2725.0,2724.6,0.00364736]
[1646850265342,2.83607,2725.0,2724.1,0.08838625]
[1646850265543,2.83607,2725.0,2724.7,0.00369797]
[1646850265944,1.0,2724.9,2724.7,0.00369797]
[1646850266583,0.9181,2724.7,2724.1,0.08838625]
[1646850268182,0.9181,2724.7,2724.3,0.00369827]
[1646850268888,0.9181,2724.7,2724.1,0.08838625]
[1646850269286,0.9181,2724.7,2724.4,0.00369439]
[1646850269786,0.146948,2724.8,2724.4,0.00369439]
[1646850270187,0.146948,2724.8,2724.4,0.011829]
[1646850270432,0.91796,2725.1,2724.8,0.293896]
[1646850271633,0.91796,2725.1,2724.9,0.87384117]
[1646850271832,1.83581,2725.4,2725.0,0.08394728]
[1646850272035,0.91783,2725.5,2725.1,1.60158321]
[1646850272237,0.91783,2725.5,2725.2,1.60063472]
[1646850272439,0.91783,2725.5,2725.2,0.07507102]
[1646850272633,0.91783,2725.5,2725.3,1.52538533]
[1646850273838,0.91783,2725.5,2725.2,0.37507102]
[1646850274085,0.91783,2725.5,2724.9,0.0862491]
[1646850274282,1.0,2725.4,2725.0,1.52548193]
[1646850274483,1.0,2725.4,2725.1,0.07990244]
[1646850274883,1.0,2725.4,2725.0,0.95280773]
[1646850275084,0.91783,2725.5,2725.2,0.08627742]
[1646850275285,0.91783,2725.5,2725.3,1.52543294]
[1646850276483,0.91783,2725.5,2725.2,0.08627742]
[1646850276689,0.91783,2725.5,2725.0,0.011667]
[1646850276886,0.91783,2725.5,2725.2,0.08240322]
[1646850277085,0.91783,2725.5,2725.0,0.011667]
[1646850277287,0.91783,2725.5,2725.2,0.08662635]
[1646850277487,1.91783,2725.5,2725.0,0.011667]
[1646850277685,1.91783,2725.5,2725.1,1.52551681]
[1646850277941,1.91783,2725.5,2725.0,0.011667]
[1646850279541,1.91783,2725.5,2725.1,1.52549569]
[1646850279746,1.91783,2725.5,2725.2,0.08575948]
[1646850280145,1.91783,2725.5,2725.0,0.011667]
[1646850280443,1.91783,2725.5,2725.1,1.52547194]
[1646850281444,1.91783,2725.5,2725.2,0.07100615]
[1646850281681,0.91783,2725.5,2725.2,0.07100615]
[1646850281883,0.91783,2725.5,2725.2,0.012627]
[1646850283791,0.91809,2725.2,2724.8,0.29758828]
[1646850284391,1.0,2724.9,2724.8,0.29758828]
[1646850284589,1.0,2724.9,2724.8,0.293896]
[1646850284789,1.0,2724.9,2724.8,0.29758806]
[1646850284989,1.91816,2724.9,2724.8,1.52560313]
[1646850285191,5.41816,2724.9,2724.8,1.52568573]
[1646850285438,5.41816,2724.9,2724.0,1.62796357]
[1646850285439,0.05292523,2724.8,2724.0,1.62796357]
[1646850285640,0.005834,2724.6,2724.1,1.52579014]
[1646850285837,1.0,2724.2,2724.1,1.52579014]
[1646850286240,1.91849,2724.2,2724.1,1.52579014]
[1646850286438,1.91849,2724.2,2724.0,1.62796357]
[1646850286841,2.88772072,2724.3,2723.6,0.00779713]
[1646850286842,2.0,2724.0,2723.6,0.00779713]
[1646850287042,0.005834,2723.9,2723.6,0.00779713]
[1646850287239,1.0,2723.7,2723.6,0.00779713]
[1646850289386,0.91859,2723.9,2723.6,0.02074313]
[1646850289590,0.91859,2723.9,2723.8,0.027079]
[1646850289787,1.91859,2723.9,2723.8,0.027079]
[1646850290186,1.91859,2723.9,2723.6,0.02074313]
[1646850290388,0.29088346,2723.9,2723.8,0.015865]
[1646850290786,1.83717,2724.0,2723.8,0.015865]
[1646850290987,0.99988346,2723.9,2723.8,0.015865]
[1646850291391,1.91748157,2723.9,2723.8,0.015865]
[1646850291788,0.91859,2723.9,2723.8,0.015865]
[1646850292191,1.91848157,2723.9,2723.8,0.015865]
[1646850293441,0.91859,2723.9,2723.8,0.015865]
[1646850293641,2.83706157,2724.0,2723.9,0.07630162]
[1646850293642,0.99989157,2724.0,2723.9,0.07630162]
[1646850293842,4.09759997,2724.6,2723.9,0.07630162]
[1646850294141,0.99989157,2724.5,2724.1,0.013949]
[1646850294643,0.90805392,2724.5,2724.1,0.013949]
[1646850294844,0.13819997,2724.6,2724.1,0.013949]
[1646850295241,0.99905392,2724.5,2724.1,0.013949]
[1646850295441,0.91823,2724.3,2724.1,0.013949]
[1646850295643,0.91823,2724.3,2724.2,0.00369257]
[1646850295942,0.91722979,2724.3,2724.2,0.00369257]
[1646850296576,0.91722979,2724.3,2724.1,0.09880538]
[1646850296782,0.91722979,2724.3,2724.1,0.10249802]
[1646850297381,0.91811,2724.6,2724.1,0.10249802]
[1646850297580,0.91811,2724.6,2724.4,0.016495]
[1646850298279,3.02652,2724.9,2724.4,0.016495]
[1646850298480,0.91804,2725.0,2724.7,0.015264]
[1646850298981,0.91804,2725.0,2724.9,0.018143]
[1646850299581,0.91804,2725.0,2724.7,0.08973662]
[1646850300181,0.91804,2725.0,2724.7,0.08604441]
[1646850300429,0.91804,2725.0,2724.7,0.08973662]
[1646850301231,0.91804,2725.0,2724.9,0.014698]
[1646850303336,0.91804,2725.0,2724.7,0.08973667]
[1646850303736,0.91804,2725.0,2724.7,0.08604441]
[1646850304179,0.91804,2725.0,2724.7,0.0897366]
[1646850304383,0.91804,2725.0,2724.7,0.01895619]
[1646850304783,0.91804,2725.0,2724.7,0.00369219]
[1646850304984,2.83560392,2724.8,2724.3,0.08521818]
[1646850305186,2.83560392,2724.8,2724.1,0.3]
[1646850305187,2.83560392,2724.8,2724.7,0.00369218]
[1646850306182,2.83560392,2724.8,2724.1,0.37272218]
[1646850306382,2.83560392,2724.8,2724.6,0.00369219]
[1646850307283,2.83560392,2724.8,2724.2,1.5257559]
[1646850307686,2.83560392,2724.8,2724.6,0.00369223]
[1646850308537,2.83560392,2724.8,2724.2,1.5257559]
[1646850308738,2.83560392,2724.8,2724.6,0.00369224]
[1646850309841,2.83560392,2724.8,2724.2,1.5257559]
[1646850310037,2.83560392,2724.8,2724.6,0.00369224]
[1646850310742,0.99905392,2724.7,2724.6,0.00369224]
[1646850310938,0.99905392,2724.7,2724.2,1.5257559]
[1646850311238,0.99905392,2724.7,2724.6,0.00369224]
[1646850311441,1.91728392,2724.7,2724.6,0.00369224]
[1646850312078,1.91728392,2724.7,2724.2,1.5257559]
[1646850312482,0.91823,2724.7,2724.5,0.00369228]
[1646850312683,1.04309834,2725.2,2724.5,0.00369228]
[1646850312684,2.72041784,2725.3,2724.7,1.62720279]
[1646850312889,1.2462,2725.6,2724.8,1.52544796]
[1646850313087,3.30456676,2725.7,2724.9,0.07938119]
[1646850313286,0.918,2725.3,2725.0,1.52544796]
[1646850313495,0.046,2725.4,2725.1,3.5876755]
[1646850313685,5.4379,2726.1,2725.2,2.74023744]
[1646850313686,0.00369097,2725.7,2725.2,2.74023744]
[1646850313886,0.00369097,2725.7,2725.3,5.10889157]
[1646850314084,0.00369097,2725.7,2725.4,1.60328318]
[1646850314284,0.00369097,2725.7,2725.5,1.60043667]
[1646850314487,0.00369097,2725.7,2725.6,1.60425778]
[1646850314687,0.91771,2725.9,2725.7,0.07408511]
[1646850315084,0.91771,2725.9,2725.5,0.07421686]
[1646850315350,0.91771,2725.9,2725.6,1.52506367]
[1646850315543,0.91771,2725.9,2725.7,0.0781719]
[1646850315740,0.91771,2725.9,2725.1,3.5]
[1646850315940,1.91771,2725.9,2725.2,1.52514279]
[1646850316146,1.92140109,2725.9,2725.3,0.08427966]
[1646850316342,1.0,2725.6,2725.4,1.52514279]
[1646850316540,1.0,2725.6,2724.9,3.5]
[1646850316742,1.0,2725.6,2725.0,1.59703411]
[1646850317041,1.0,2725.6,2724.9,4.707222]
[1646850317042,1.0,2725.6,2725.2,0.08433496]
[1646850317241,1.0,2725.6,2725.3,1.525214]
[1646850317441,1.0,2725.6,2725.4,1.60509784]
[1646850317642,1.91781,2725.6,2725.2,0.09044549]
[1646850317843,1.91781,2725.6,2725.4,0.09007821]
[1646850318052,1.0,2725.6,2725.5,1.52516938]
[1646850321383,1.0,2725.6,2725.4,0.09007821]
[1646850321590,1.0,2725.6,2724.9,0.08158679]
[1646850321788,1.83561,2725.8,2725.0,1.52523646]
[1646850321789,1.0,2725.5,2725.0,1.52523646]
[1646850321984,1.0,2725.8,2725.1,0.08292591]
[1646850321985,1.0,2725.3,2725.1,0.08292591]
[1646850322185,1.0,2725.3,2725.2,1.52523646]
[1646850322938,1.0,2725.3,2724.7,1.62720279]
[1646850323143,1.0,2725.3,2724.8,1.52528549]
[1646850323339,1.0,2725.3,2724.9,0.08293289]
[1646850323536,1.0,2725.3,2725.1,0.0855656]
[1646850323740,1.0,2725.3,2724.7,1.93089522]
[1646850323937,1.0,2725.3,2724.9,0.07587718]
[1646850324139,1.0,2725.3,2725.0,1.52526287]
[1646850324339,1.0,2725.3,2725.1,0.08105538]
[1646850324739,1.0,2725.3,2724.7,1.63089507]
[1646850324740,1.0,2725.3,2724.8,0.07714371]
[1646850324939,1.0,2725.3,2724.9,1.52527434]
[1646850325139,1.0,2725.3,2725.0,0.07938932]
[1646850325342,1.0,2725.3,2725.1,1.52527434]
[1646850325643,1.0,2725.3,2725.2,0.08145504]
[1646850325843,1.0,2725.3,2724.7,1.63089513]
[1646850326039,1.0,2725.3,2724.9,0.08270439]
[1646850326241,1.0,2725.3,2725.1,0.07192965]
[1646850326439,1.0,2725.3,2724.7,1.63089513]
[1646850326685,1.0,2725.3,2724.9,0.07731889]
[1646850326884,1.0,2725.3,2725.1,0.0702877]
[1646850327086,1.0,2725.3,2725.2,1.52527148]
[1646850330460,1.0,2725.3,2724.8,0.08799674]
[1646850330650,1.0,2725.3,2724.9,1.52531629]
[1646850330857,4.5,2725.2,2724.9,1.59974091]
[1646850331051,2.83652,2725.2,2724.9,0.07442462]
[1646850331253,2.83652,2725.2,2724.7,1.63089521]
[1646850331254,5.5,2724.9,2724.7,1.63089521]
[1646850331457,3.75486,2725.0,2724.7,1.06879959]
[1646850331458,4.41838,2724.8,2724.7,1.06879959]
[1646850331650,4.41838,2724.8,2723.8,0.08679965]
[1646850331651,0.04371789,2724.7,2723.8,0.08679965]
[1646850331850,0.04371789,2724.7,2723.9,1.52556215]
[1646850332049,1.0,2724.0,2723.6,0.68019038]
[1646850332451,2.83689,2724.0,2723.6,0.68019038]
[1646850332651,2.83689,2724.0,2723.6,2.20578176]
[1646850332849,0.91845,2723.9,2723.7,0.00369288]
[1646850333852,0.91845,2723.9,2723.7,0.68019038]
[1646850334082,0.04749058,2724.4,2723.9,2.44056916]
[1646850334283,2.75534,2724.5,2723.9,2.44056916]
[1646850334284,2.75534,2724.5,2724.1,0.68175827]
[1646850334487,0.18218697,2724.8,2724.2,3.5]
[1646850334685,0.18218697,2724.8,2724.3,1.52559138]
[1646850334893,0.53726411,2724.9,2724.4,1.52559138]
[1646850335086,0.53726411,2724.9,2724.5,1.52559138]
[1646850335286,0.04597935,2725.1,2724.5,1.52559138]
[1646850335487,0.04597935,2725.1,2724.6,1.52559138]
[1646850335488,1.0,2725.0,2724.6,1.52559138]
[1646850335785,1.0,2725.0,2724.7,1.52559138]
[1646850335989,1.0,2725.0,2724.8,1.52559138]
[1646850336186,0.04597935,2725.1,2724.9,1.52559138]
[1646850336387,0.91797,2725.1,2725.0,1.52559138]
[1646850337091,0.91797,2725.1,2724.7,0.00369496]
[1646850337289,0.91797,2725.1,2724.7,1.52928634]
[1646850337490,0.91797,2725.1,2724.8,1.52559138]
[1646850337692,0.91797,2725.1,2724.5,4.70062646]
[1646850337693,0.91797,2725.1,2724.9,1.52559138]
[1646850337940,0.91797,2725.1,2725.0,1.52559138]
[1646850338341,0.91797,2725.1,2724.7,0.00369206]
[1646850338542,1.91797,2725.1,2724.7,0.00369206]
[1646850338742,1.0,2725.0,2724.6,1.52559138]
[1646850338942,1.87967302,2724.9,2724.7,0.00369206]
[1646850339143,2.87967302,2724.9,2724.7,0.00369206]
[1646850339341,1.0,2724.8,2724.7,0.00369206]
[1646850339541,1.04593416,2724.8,2724.7,0.00369206]
[1646850339742,1.04593416,2724.8,2724.4,1.52561572]
[1646850339743,5.5,2724.7,2724.4,1.52561572]
[1646850339943,0.05199556,2724.5,2723.9,2.44056916]
[1646850340143,3.75554,2724.4,2724.0,1.52578045]
[1646850340342,0.0517795,2724.3,2724.0,1.52578045]
[1646850340744,1.0,2724.1,2723.9,2.44056916]
[1646850341053,1.0,2724.0,2723.9,2.44056916]
[1646850343498,1.0,2724.0,2723.9,3.96642378]
[1646850343704,0.91854,2724.2,2723.9,2.44056916]
[1646850344199,0.04964462,2724.7,2724.0,5.52578496]
[1646850344498,0.04964462,2724.7,2724.0,1.59645221]
[1646850344702,0.04964462,2724.7,2724.1,1.52578496]
[1646850344703,0.9182,2724.5,2724.1,1.52578496]
[1646850344901,0.9182,2724.5,2723.9,2.44056916]
[1646850345102,1.0,2724.2,2723.9,2.44056916]
[1646850346437,0.91846,2724.1,2723.9,2.44056916]
[1646850347243,0.91846,2724.1,2722.9,0.68083882]
[1646850347244,9.37819474,2724.0,2722.9,0.68083882]
[1646850347443,9.37819474,2724.0,2722.5,0.00103173]
[1646850347444,0.01220784,2723.3,2723.0,1.52603274]
[1646850347643,1.0,2723.0,2722.5,0.00103173]
[1646850347953,0.58533386,2722.9,2722.3,1.52628341]
[1646850348144,4.029,2722.9,2722.4,1.52628341]
[1646850348345,1.0,2722.6,2722.5,1.52628341]
[1646850348643,6.25771,2722.4,2721.8,0.00103173]
[1646850348848,0.05986661,2722.3,2721.7,1.5265477]
[1646850349091,0.05986661,2722.3,2721.8,1.5265477]
[1646850349294,1.0,2722.2,2721.9,1.5265477]
[1646850349498,1.0,2722.2,2721.2,0.00103173]
[1646850349499,1.0,2721.9,2721.2,0.00103173]
[1646850349793,0.06119844,2721.8,2721.2,0.00103173]
[1646850349992,0.06119844,2721.8,2720.8,2.20776783]
[1646850350195,0.06119844,2721.8,2720.8,1.52692901]
[1646850350196,0.91939,2721.2,2720.8,1.52692901]
[1646850350397,0.91939,2721.2,2720.9,1.52692901]
[1646850350693,1.91939,2721.2,2721.0,1.52692901]
[1646850351094,1.91939,2721.2,2720.4,0.07023548]
[1646850351095,1.0,2721.1,2720.4,0.07023548]
[1646850351398,1.0,2720.9,2720.5,1.52721597]
[1646850352937,0.91956,2720.8,2720.5,1.52721597]
[1646850353141,0.91956,2720.8,2720.6,1.52721597]
[1646850353340,0.91956,2720.8,2720.7,1.52721597]
[1646850353841,1.0,2721.2,2720.7,1.52721597]
[1646850354044,0.91935,2721.1,2720.7,1.52721597]
[1646850354242,1.0,2721.3,2720.7,1.52721597]
[1646850354439,1.0,2721.3,2720.8,0.00414006]
[1646850354641,1.0,2721.3,2720.9,1.52721597]
[1646850355442,1.91929,2721.3,2720.9,1.52721597]
[1646850355641,1.91929,2721.3,2721.0,0.00413994]
[1646850355841,1.91929,2721.3,2721.1,1.52721597]
[1646850356889,1.91929,2721.3,2721.1,0.00413985]
[1646850357890,1.91929,2721.3,2720.5,0.36663173]
[1646850358092,1.91929,2721.3,2721.1,0.00400014]
[1646850359105,1.91929,2721.3,2720.8,1.52717197]
[1646850359297,1.91929,2721.3,2721.1,0.00400014]
[1646850359896,1.91929,2721.3,2720.8,1.38117929]
[1646850360098,1.91929,2721.3,2720.8,1.45864297]
[1646850360338,1.91929,2721.3,2720.5,3.8656]
[1646850360544,1.91929,2721.3,2720.6,0.06210341]
[1646850360746,0.91956,2721.0,2720.6,0.06210341]
[1646850360946,1.83911,2721.1,2720.6,0.06210341]
[1646850360947,0.31513284,2721.1,2720.7,4.5]
[1646850361145,0.31513284,2721.1,2720.4,0.07284796]
[1646850361347,0.31513284,2721.1,2720.3,3.8656]
[1646850361348,0.31513284,2721.1,2720.3,0.3656]
[1646850361746,0.31513284,2721.1,2720.8,0.00389849]
[1646850362346,0.91956,2721.0,2720.8,0.00389849]
[1646850362749,0.9196401,2720.9,2720.2,0.08094697]
[1646850362949,0.9196401,2720.9,2719.6,5.12273626]
[1646850362950,0.05205942,2720.8,2719.6,5.12273626]
[1646850363150,2.42039942,2720.8,2720.4,0.01559615]
[1646850363450,0.06849103,2720.6,2720.4,0.01559615]
[1646850363847,1.0,2720.5,2720.4,0.01559615]
[1646850364087,1.90143547,2720.4,2720.0,0.01559746]
[1646850364288,1.06135648,2720.5,2720.0,0.01559746]
[1646850364502,0.17812419,2721.2,2720.1,0.3656]
[1646850364503,0.91952,2720.6,2720.1,0.3656]
[1646850364891,0.91952,2720.6,2720.0,0.01559746]
[1646850365091,0.91952,2720.6,2719.8,0.42154022]
[1646850365092,0.99349573,2720.6,2719.8,0.42154022]
[1646850365292,0.074071,2720.5,2720.2,0.00390581]
[1646850365693,0.91952,2720.6,2720.2,0.00390581]
[1646850365890,0.06172213,2720.5,2720.2,0.00390581]
[1646850366092,0.98085815,2720.3,2720.2,0.00390581]
[1646850366290,0.98085815,2720.3,2719.6,1.09271651]
[1646850366493,0.07233399,2720.2,2719.6,1.09271651]
[1646850366695,0.07233399,2720.2,2719.8,0.01562558]
[1646850366894,0.91971,2720.3,2720.2,0.14466797]
[1646850367941,1.91971,2720.3,2720.2,0.14466797]
[1646850368740,0.011667,2720.7,2720.2,0.14466797]
[1646850368939,7.5079,2720.9,2720.2,0.14466797]
[1646850368940,7.55563228,2720.9,2720.2,0.14466797]
[1646850369139,0.04773228,2720.9,2720.2,0.14466797]
[1646850369640,1.850627,2721.0,2720.2,0.14466797]
[1646850369839,1.850627,2721.0,2720.5,0.87056676]
[1646850370444,0.91943,2720.9,2720.4,0.00390522]
[1646850371041,0.91943,2720.9,2720.2,0.14466797]
[1646850371442,0.91943,2720.9,2720.5,0.00390515]
[1646850372293,0.91943,2720.9,2720.4,0.99714404]
[1646850372488,0.91943,2720.9,2720.6,0.00390929]
[1646850372893,1.14088321,2721.0,2720.6,0.00390929]
[1646850373496,0.91943,2720.9,2720.4,0.99714404]
[1646850373694,0.91943,2720.9,2720.7,0.00368234]
[1646850374695,0.91943,2720.9,2720.2,0.14466797]
[1646850374902,0.0777232,2720.8,2720.2,0.14466797]
[1646850375097,0.0777232,2720.8,2720.7,0.00368234]
[1646850375839,3.8368332,2720.8,2720.7,0.00368234]
[1646850376036,0.05110399,2720.7,2720.2,0.14466797]
[1646850376236,0.05110399,2720.7,2720.6,0.00368975]
[1646850376638,1.05110399,2720.7,2720.6,0.00368975]
[1646850377042,0.05110399,2720.7,2720.2,0.15942918]
[1646850377240,0.012221,2720.7,2720.2,0.14466797]
[1646850377446,1.91969,2720.7,2720.5,0.00368982]
[1646850377641,0.91969,2720.7,2720.5,0.00368982]
[1646850378445,0.91969,2720.7,2720.2,0.81563462]
[1646850378645,0.91969,2720.7,2720.5,0.00370429]
[1646850379492,0.91969,2720.7,2720.3,0.67096665]
[1646850379896,0.91969,2720.7,2720.5,0.00370333]
[1646850380297,9e-05,2720.7,2720.5,0.00370333]
[1646850380495,0.06291075,2721.0,2720.5,0.00370333]
[1646850380496,0.05124375,2721.0,2720.7,0.00071]
[1646850380692,0.377267,2721.3,2720.7,1.52815519]
[1646850380693,0.0598588,2721.2,2720.7,1.52815519]
[1646850380899,0.011667,2721.3,2720.7,1.52815519]
[1646850381298,0.011667,2721.3,2720.9,1.00543643]
[1646850381496,0.011667,2721.3,2721.0,1.52744519]
[1646850381698,1.34605609,2721.5,2721.0,1.52744519]
[1646850381699,0.05174057,2721.4,2721.0,1.52744519]
[1646850382297,0.05174057,2721.4,2721.0,1.53114704]
[1646850382496,0.05174057,2721.4,2721.0,5.03114704]
[1646850382858,0.011667,2721.6,2721.3,5.5]
[1646850383053,1.011667,2721.8,2721.5,0.08416972]
[1646850383254,9.23397012,2722.3,2721.6,1.52744519]
[1646850383255,1.0,2722.0,2721.6,1.52744519]
[1646850383852,1.0,2722.0,2721.6,2.44561375]
[1646850384153,1.0,2722.0,2721.7,1.52744519]
[1646850384354,1.04881381,2721.9,2721.8,1.52744519]
[1646850384554,0.04881381,2721.9,2721.2,1.52840519]
[1646850384754,0.19298672,2722.1,2721.3,1.52744519]
[1646850384954,1.0,2721.9,2721.4,3.57615634]
[1646850385257,0.91917,2722.0,2721.6,0.07131725]
[1646850385457,1.83806,2722.3,2721.7,1.52744519]
[1646850385655,7.0942,2722.5,2721.8,3.56921071]
[1646850385656,1.0,2722.5,2721.8,3.56921071]
[1646850385855,0.011667,2722.6,2721.8,3.56921071]
[1646850385856,0.011667,2722.6,2721.9,1.60851511]
[1646850386057,0.011667,2722.6,2722.2,1.13656892]
[1646850386058,1.0,2722.5,2722.2,1.13656892]
[1646850386256,1.0,2722.5,2722.3,1.52744519]
[1646850386456,0.91883,2722.6,2722.3,1.52744519]
[1646850386687,0.91883,2722.6,2721.9,0.07035296]
[1646850386896,1.0,2722.5,2722.0,1.52697866]
[1646850387093,1.83781,2722.7,2722.1,5.10640982]
[1646850387094,1.0,2722.7,2722.1,5.10640982]
[1646850387294,1.0,2722.7,2722.2,1.5967769]
[1646850387598,0.91875,2722.9,2722.3,1.52697866]
[1646850387994,0.91875,2722.9,2722.8,1.02803355]
[1646850388392,0.91875,2722.9,2722.2,0.06979824]
[1646850388593,0.91875,2722.9,2722.3,1.52685196]
[1646850388793,0.91875,2722.9,2722.4,0.08352631]
[1646850388993,0.91875,2722.9,2722.5,1.52685196]
[1646850389594,1.33705004,2722.9,2722.0,0.08108258]
[1646850389793,1.33705004,2722.9,2722.1,1.52696833]
[1646850391140,0.91895,2722.7,2722.1,1.52696833]
[1646850391341,0.91897,2722.5,2722.1,5.02696833]
[1646850391545,1.8378695,2723.1,2722.1,5.02696833]
[1646850391546,1.011667,2723.2,2722.3,0.09003706]
[1646850391744,1.011667,2723.2,2722.4,1.59803799]
[1646850391940,1.011667,2723.2,2722.5,5.02696833]
[1646850392147,1.011667,2723.2,2722.6,1.52696833]
[1646850392347,1.011667,2723.2,2722.4,0.07106966]
[1646850392348,1.011667,2723.2,2722.7,1.52696833]
[1646850392546,1.011667,2723.2,2722.8,1.52696833]
[1646850392547,1.880307,2723.2,2722.8,1.52696833]
[1646850392748,0.961667,2723.0,2722.9,1.52696833]
[1646850393150,3.62547,2723.2,2722.9,1.52685957]
[1646850393345,0.999667,2723.0,2722.4,0.07106966]
[1646850393548,2.837437,2723.0,2722.5,1.52685769]
[1646850397592,2.837437,2723.0,2722.6,1.52685769]
[1646850397838,0.91885,2722.8,2722.1,3.5]
[1646850398043,0.91885,2722.8,2722.2,1.52700572]
[1646850398044,0.91882,2722.7,2722.2,1.52700572]
[1646850398242,0.91885,2722.8,2722.7,0.70992047]
[1646850398845,0.91885,2722.8,2722.7,2.23680345]
[1646850399143,0.91885,2722.8,2722.7,0.70992047]
[1646850399544,1.83765,2722.8,2722.7,0.70992047]
[1646850400445,0.9188,2722.8,2722.7,0.70992047]
[1646850401253,0.91876,2723.1,2722.9,1.06304897]
[1646850401728,0.999667,2723.2,2722.9,1.06304897]
[1646850401925,0.999667,2723.3,2722.9,1.06304897]
[1646850402323,1.83749,2723.4,2722.9,1.06304897]
[1646850402324,0.999667,2723.2,2722.9,1.06304897]
[1646850403130,0.999667,2723.2,2722.7,0.78843739]
[1646850404131,0.999667,2723.1,2722.7,0.78843739]
[1646850404534,0.999667,2723.1,2722.7,0.70992047]
[1646850404731,2.837357,2723.1,2722.7,0.70992047]
[1646850405943,0.91877,2723.0,2722.7,0.70992047]
[1646850408549,0.999667,2723.1,2722.7,0.70992047]
[1646850410792,0.9187,2723.2,2722.7,0.70992047]
[1646850410793,1.918367,2723.2,2722.7,0.70992047]
[1646850410989,0.999667,2723.3,2722.7,0.70992047]
[1646850411391,0.999667,2723.2,2722.7,0.70992047]
[1646850411890,0.999667,2723.3,2722.7,0.70992047]
[1646850412090,0.999667,2723.3,2722.8,1.52672444]
[1646850412290,0.999667,2723.4,2722.8,1.52672444]
[1646850412690,0.999667,2723.4,2722.7,0.70992047]
[1646850412946,0.05303502,2723.5,2722.8,1.52671402]
[1646850412947,0.999667,2723.3,2722.8,1.52671402]
[1646850414750,0.999667,2723.4,2722.8,1.52671402]
[1646850414950,0.999667,2723.4,2722.8,5.02671402]
[1646850415150,0.05302995,2723.5,2722.9,1.52671402]
[1646850415350,0.05302995,2723.5,2722.8,5.02671402]
[1646850415552,0.05302995,2723.5,2722.9,1.52662664]
[1646850415750,0.04924517,2723.5,2722.9,1.52662664]
[1646850415950,0.05293292,2723.5,2722.9,1.52662664]
[1646850416795,0.04924517,2723.5,2722.9,1.52662664]
[1646850417191,0.04924517,2723.5,2722.7,0.78037371]
[1646850417192,0.05293292,2723.5,2722.7,0.78037371]
[1646850417391,0.05293292,2723.5,2722.8,5.02660834]
[1646850417595,0.05293292,2723.5,2722.9,1.52660834]
[1646850417793,0.05293292,2723.5,2722.8,3.5]
[1646850417997,0.04924517,2723.5,2722.9,1.52658908]
[1646850418197,0.05293661,2723.5,2722.9,1.52658908]
[1646850419000,0.00369144,2723.5,2723.0,5.02658908]
[1646850419199,1.13786697,2723.9,2723.1,1.52658908]
[1646850419402,0.13819997,2723.9,2723.2,3.5]
[1646850419598,0.00369827,2723.5,2723.2,3.5]
[1646850419798,0.00369827,2723.5,2723.3,0.06890734]
[1646850419998,0.01479198,2723.7,2723.5,5.50739654]
[1646850420202,0.999667,2724.2,2723.6,9.60244024]
[1646850420461,0.54497392,2724.4,2723.7,0.08992159]
[1646850420750,1.2201,2724.8,2723.8,0.08381162]
[1646850420948,1.2201,2724.8,2724.3,1.01721609]
[1646850421149,3.37706217,2725.0,2724.3,0.07003679]
[1646850421150,4.37672917,2725.0,2724.3,0.07003679]
[1646850421348,4.37672917,2725.0,2724.1,0.07990745]
[1646850421954,0.00172386,2724.8,2724.1,0.07990745]
[1646850422748,3.3341,2725.0,2724.1,0.07990745]
[1646850423254,0.00393512,2724.6,2724.3,1.02693675]
[1646850423651,0.00393512,2724.6,2724.4,3.5]
[1646850423954,0.00393512,2724.6,2723.7,2.56166359]
[1646850424196,0.999667,2724.6,2723.8,1.52615769]
[1646850424396,0.05937226,2724.5,2723.8,1.52615769]
[1646850424598,0.91827,2724.4,2723.8,1.52615769]
[1646850425095,0.91827,2724.4,2723.8,2.40826337]
[1646850425295,0.91827,2724.4,2723.7,0.08126359]
[1646850425496,0.91837,2724.5,2723.6,0.011667]
[1646850425497,0.91842,2724.1,2723.6,0.011667]